bitfinex/quotes_ETHUSD_20260302
["timestamp","ask_amount","ask_price","bid_price","bid_amount"]
[1772465932121,7.3765421,2049.7,2048.1,0.967]
[1772465932522,6.15685142,2049.6,2047.9,1.22175264]
[1772465932851,1.21969068,2049.7,2047.9,0.001]
[1772465932852,7.40885142,2049.5,2047.9,0.001]
[1772465933039,7.40885142,2049.5,2047.9,1.22175853]
[1772465933342,2.47186923,2049.4,2047.9,0.001]
[1772465933550,6.15685142,2049.3,2047.9,0.001]
[1772465934218,1.251,2049.2,2047.9,0.001]
[1772465934426,6.15685142,2049.2,2047.9,0.001]
[1772465934729,7.40785142,2049.1,2047.9,0.001]
[1772465935108,6.15685142,2049.1,2047.9,0.001]
[1772465935311,1.22010736,2049.0,2047.9,0.001]
[1772465935722,7.37695878,2049.0,2047.9,0.001]
[1772465935926,1.251,2048.9,2047.9,0.001]
[1772465936141,7.37695878,2049.0,2047.9,0.001]
[1772465936142,1.251,2048.8,2047.9,0.001]
[1772465936318,1.25,2048.9,2047.9,0.001]
[1772465936520,1.22010736,2049.0,2047.9,0.001]
[1772465936935,2.47010736,2049.0,2047.9,0.001]
[1772465937629,8.62695878,2049.0,2047.9,0.001]
[1772465937941,6.15685142,2048.9,2047.3,1.2211205]
[1772465938129,1.251,2048.8,2047.3,1.2211205]
[1772465938542,7.40785142,2048.8,2047.3,1.2211205]
[1772465939343,1.22028603,2048.7,2047.3,1.2211205]
[1772465939527,1.252,2048.6,2047.3,1.2211205]
[1772465939925,7.40885142,2048.6,2047.2,1.22116454]
[1772465940252,7.40885142,2048.6,2046.9,1.22135912]
[1772465940446,6.15685142,2048.4,2046.9,1.22135912]
[1772465940755,1.22028603,2048.7,2047.0,6.8775646]
[1772465940959,1.252,2048.6,2047.0,6.8775646]
[1772465941160,1.22028603,2048.7,2047.1,0.964]
[1772465941456,4.88114414,2048.8,2047.2,7.13474474]
[1772465941457,1.251,2048.6,2047.2,7.13474474]
[1772465941660,1.251,2048.6,2047.2,8.09774474]
[1772465941828,1.251,2048.6,2047.2,1.22118014]
[1772465942028,1.251,2048.6,2046.6,1.22250173]
[1772465942029,6.15685142,2048.4,2046.6,1.22250173]
[1772465942227,6.15685142,2048.2,2046.6,1.22250173]
[1772465942458,1.25,2048.1,2046.6,1.22250173]
[1772465942902,1.249,2048.2,2046.6,7.13606633]
[1772465943358,1.248,2048.2,2046.6,7.13606633]
[1772465943561,1.248,2048.3,2046.8,5.9135646]
[1772465943761,7.37719702,2048.6,2046.8,5.9135646]
[1772465943963,7.37719702,2048.6,2047.0,5.9135646]
[1772465944278,2.46829836,2048.7,2047.0,5.9135646]
[1772465944990,1.22029836,2048.7,2047.0,5.9135646]
[1772465945149,2.46629836,2048.7,2047.0,5.9135646]
[1772465945461,4.88104967,2048.8,2047.2,5.9135646]
[1772465945462,1.246,2048.8,2047.2,5.9135646]
[1772465945668,6.15685142,2048.7,2047.2,5.9135646]
[1772465945834,6.15685142,2048.7,2047.1,1.2212398]
[1772465946034,1.245,2048.6,2047.1,1.2212398]
[1772465946377,1.245,2048.6,2047.1,7.1348044]
[1772465946552,1.245,2048.8,2047.1,7.1348044]
[1772465946750,1.244,2048.8,2047.1,7.1348044]
[1772465947282,6.15685142,2048.8,2046.9,4.88495921]
[1772465947436,6.15685142,2048.6,2047.0,5.9135646]
[1772465947633,7.39985142,2048.6,2047.0,5.9135646]
[1772465947832,7.39985142,2048.6,2047.0,6.8725646]
[1772465948432,1.243,2048.6,2047.2,5.9135646]
[1772465948838,1.243,2048.6,2047.3,0.959]
[1772465949033,1.243,2048.6,2047.1,2.66701024]
[1772465949034,7.39985142,2048.6,2047.1,0.959]
[1772465949236,6.15685142,2048.6,2047.1,0.959]
[1772465949433,1.22046475,2048.4,2047.2,1.22118014]
[1772465950566,6.15685142,2049.3,2047.2,7.13474474]
[1772465950755,6.15685142,2049.1,2047.2,7.13474474]
[1772465950957,6.15685142,2049.1,2047.3,5.9791006]
[1772465951267,4.87971502,2049.5,2047.9,5.9135646]
[1772465951268,7.37666797,2049.5,2047.9,5.9135646]
[1772465951576,6.12154335,2049.8,2048.2,5.9135646]
[1772465951577,2.46267717,2049.8,2048.2,5.9135646]
[1772465951866,6.15685142,2050.0,2048.2,5.9135646]
[1772465952067,7.37637314,2050.0,2048.2,5.9135646]
[1772465952386,6.15685142,2050.0,2048.2,5.9135646]
[1772465952539,7.37638391,2050.0,2048.2,6.32481116]
[1772465952734,7.37636647,2050.0,2048.3,0.958]
[1772465952938,7.37636647,2050.0,2048.4,6.8715646]
[1772465953165,1.21949965,2050.1,2048.4,6.8715646]
[1772465953366,4.87957386,2050.2,2048.6,1.2203456]
[1772465953666,6.15685142,2050.1,2048.6,1.2203456]
[1772465954989,6.15685142,2050.1,2048.6,7.18270775]
[1772465955158,1.238,2050.0,2048.6,7.18270775]
[1772465955485,1.238,2050.0,2048.6,8.13870775]
[1772465955486,1.21957168,2049.9,2048.6,8.13870775]
[1772465955652,1.21957168,2049.9,2048.6,7.18270775]
[1772465955852,6.084407,2049.7,2048.2,2.17658392]
[1772465956051,6.084407,2049.7,2047.9,5.96236215]
[1772465956278,6.084407,2049.5,2047.9,5.96236215]
[1772465956486,6.084407,2049.5,2047.7,1.22088196]
[1772465956789,1.238,2049.6,2047.7,1.22088196]
[1772465956790,6.084407,2049.3,2047.7,1.22088196]
[1772465957098,6.084407,2049.1,2046.9,1.22131782]
[1772465957264,6.084407,2048.9,2046.9,1.22131782]
[1772465957449,5.94791575,2048.6,2046.8,0.001]
[1772465957657,5.94791575,2048.5,2046.8,5.93287438]
[1772465957983,2.45916725,2048.9,2047.4,5.93187438]
[1772465958200,2.45916725,2048.9,2047.5,5.93187438]
[1772465958353,5.94791575,2048.8,2047.0,5.93187438]
[1772465958549,1.239,2048.9,2047.4,5.93187438]
[1772465958763,2.4591701,2048.9,2047.4,5.93187438]
[1772465958993,2.4591701,2048.9,2047.5,0.956]
[1772465959151,1.22010736,2049.0,2047.5,6.88787438]
[1772465959358,4.88026025,2049.1,2047.6,1.22094159]
[1772465959551,5.94791575,2049.0,2047.3,1.2211205]
[1772465960286,5.94791575,2049.0,2047.3,2.1761205]
[1772465960456,5.94791575,2049.0,2047.3,1.2211205]
[1772465960658,5.94791575,2049.0,2047.4,0.955]
[1772465961079,5.94791575,2048.8,2047.3,2.1761205]
[1772465961283,5.94791575,2048.6,2047.1,1.22118435]
[1772465961490,7.16844008,2048.3,2047.1,1.22118435]
[1772465961779,7.16844008,2048.3,2046.9,1.22135912]
[1772465961984,7.16844008,2048.3,2046.8,1.22239987]
[1772465962182,5.94791575,2048.1,2046.8,0.001]
[1772465962383,5.94791575,2047.8,2046.8,0.001]
[1772465962559,5.94791575,2047.8,2046.6,0.001]
[1772465962762,5.94791575,2047.8,2046.6,1.22252918]
[1772465963157,1.22052433,2048.3,2046.6,1.22252918]
[1772465963158,7.16844008,2048.3,2046.6,1.22252918]
[1772465963371,7.6372474,2048.2,2046.6,1.22252918]
[1772465963566,5.94791575,2048.0,2046.6,0.001]
[1772465964190,1.237,2047.9,2046.6,0.001]
[1772465964685,7.18491575,2047.9,2046.6,0.001]
[1772465964888,1.237,2047.9,2046.6,5.93287438]
[1772465965285,7.18491575,2047.9,2046.6,0.001]
[1772465965491,1.22082234,2047.8,2046.6,0.001]
[1772465965857,1.236,2047.7,2046.6,0.001]
[1772465966291,1.236,2047.7,2046.6,0.955]
[1772465966462,1.236,2047.7,2046.6,0.001]
[1772465967289,1.235,2048.1,2046.7,8.59888462]
[1772465967477,1.235,2048.1,2046.8,2.1754188]
[1772465967478,1.22070312,2048.0,2046.8,2.1754188]
[1772465967987,1.235,2048.1,2046.9,5.93187438]
[1772465968188,1.22042906,2048.5,2046.9,6.34312094]
[1772465968368,1.22042906,2048.5,2047.1,8.59888462]
[1772465968795,1.22039811,2048.6,2047.2,5.93187438]
[1772465969089,1.22039811,2048.6,2047.3,0.954]
[1772465969292,1.235,2048.6,2047.3,6.88587438]
[1772465969586,7.17324016,2048.7,2047.3,6.88587438]
[1772465969587,0.005,2048.7,2047.4,1.22106085]
[1772465969776,5.95291575,2048.7,2047.4,1.22106085]
[1772465969984,0.005,2048.7,2047.4,7.15293523]
[1772465970397,0.005,2048.7,2047.5,6.88687438]
[1772465970689,1.24,2048.7,2047.5,6.88687438]
[1772465970890,1.24,2048.7,2047.5,5.93187438]
[1772465971091,1.24,2048.7,2047.6,0.956]
[1772465971257,1.24,2048.7,2047.5,5.93187438]
[1772465971463,7.18791575,2048.7,2047.2,4.88462663]
[1772465971690,7.18791575,2048.7,2047.1,0.955]
[1772465971691,5.94791575,2048.5,2047.1,0.955]
[1772465971989,5.94791575,2048.3,2046.9,0.955]
[1772465972162,5.94791575,2048.3,2046.9,6.88687438]
[1772465972362,1.2203456,2048.6,2046.9,0.955]
[1772465972363,5.94791575,2048.1,2046.9,0.955]
[1772465972758,5.94791575,2048.5,2046.9,6.88687438]
[1772465972961,1.22530652,2048.7,2047.1,5.93187438]
[1772465973201,1.22530652,2048.7,2047.3,5.93187438]
[1772465973491,1.22530652,2048.7,2047.5,5.93187438]
[1772465973806,0.005,2048.7,2047.6,7.15281597]
[1772465974103,0.005,2048.7,2047.7,5.93187438]
[1772465974263,0.005,2048.7,2047.8,0.956]
[1772465974670,0.005,2048.7,2047.7,0.956]
[1772465974892,7.18091575,2048.6,2047.6,1.22094159]
[1772465975092,1.233,2048.6,2047.6,1.22094159]
[1772465975691,0.005,2048.7,2047.6,7.15281597]
[1772465975878,1.22529509,2048.7,2047.7,6.88687438]
[1772465976280,1.22529158,2048.7,2047.7,6.88687438]
[1772465976517,2.45829158,2048.7,2047.6,1.22094159]
[1772465976711,1.22529158,2048.7,2047.6,1.22094159]
[1772465976900,0.005,2048.7,2047.6,7.15281597]
[1772465977417,1.22530415,2048.7,2047.6,7.15281597]
[1772465977583,0.005,2048.7,2047.6,8.10981597]
[1772465977786,1.232,2048.6,2047.6,1.22094159]
[1772465978090,0.005,2048.7,2047.6,1.22094159]
[1772465978291,1.232,2048.6,2047.6,1.22094159]
[1772465978602,1.232,2048.6,2047.5,1.22095727]
[1772465979187,7.17991575,2048.6,2047.5,1.22095727]
[1772465979588,0.005,2048.7,2047.5,7.15283165]
[1772465979789,7.18291575,2048.7,2047.5,1.22095727]
[1772465980287,7.18291575,2048.7,2047.3,2.17909826]
[1772465980611,1.235,2048.7,2047.4,5.93187438]
[1772465980804,7.18291575,2048.7,2047.4,5.93187438]
[1772465981315,5.95291575,2048.7,2047.4,5.93187438]
[1772465981524,7.18191575,2048.7,2047.4,6.34312094]
[1772465981690,5.94791575,2048.5,2047.3,0.001]
[1772465982012,1.229,2048.5,2047.4,0.957]
[1772465982215,1.2203456,2048.6,2047.4,0.957]
[1772465982716,4.8863824,2048.7,2047.3,0.001]
[1772465982717,0.005,2048.7,2047.5,6.88887438]
[1772465983125,1.22004782,2049.1,2047.5,6.88887438]
[1772465983322,0.003,2050.9,2047.6,0.957]
[1772465983323,5.94791575,2049.5,2047.6,0.957]
[1772465983536,6.40063213,2049.4,2047.6,5.93187438]
[1772465983693,1.21992875,2049.3,2048.0,5.93187438]
[1772465984018,3.6832961,2049.8,2048.2,5.93187438]
[1772465984236,9.63121185,2049.8,2048.3,0.957]
[1772465984537,9.63121185,2049.8,2048.2,5.93187438]
[1772465984712,10.86021185,2049.8,2048.3,0.957]
[1772465984906,5.94791575,2049.7,2048.3,0.957]
[1772465985523,4.9122961,2049.8,2048.4,6.88887438]
[1772465985707,4.9122961,2049.8,2048.5,1.22040517]
[1772465985908,4.9122961,2049.8,2048.6,0.956]
[1772465986119,4.9122961,2049.8,2048.7,0.956]
[1772465986323,4.9122961,2049.8,2048.8,0.957]
[1772465986522,4.9122961,2049.8,2048.9,0.956]
[1772465986819,5.94791575,2049.7,2048.5,1.22040517]
[1772465987022,1.21967131,2049.8,2048.6,6.88787438]
[1772465987204,4.87852473,2050.0,2048.6,6.88787438]
[1772465987205,1.21954744,2050.0,2048.6,6.88787438]
[1772465987400,7.37452086,2050.0,2048.7,0.956]
[1772465987605,7.38297342,2049.9,2048.8,0.956]
[1772465987854,6.15497342,2050.7,2049.0,6.29789819]
[1772465988001,7.37405192,2050.8,2049.0,6.29789819]
[1772465988406,7.37405192,2050.8,2048.9,1.22016691]
[1772465988407,6.15497342,2050.6,2049.1,0.956]
[1772465988613,6.15497342,2050.6,2048.9,1.22016691]
[1772465988830,6.15497342,2050.6,2049.0,0.956]
[1772465989034,6.15497342,2050.6,2049.1,0.956]
[1772465989215,6.15497342,2050.4,2048.9,1.22016691]
[1772465989419,6.15497342,2050.2,2048.6,2.1763456]
[1772465989612,1.229,2050.7,2048.6,2.1763456]
[1772465989613,6.15497342,2050.0,2048.6,2.1763456]
[1772465989820,1.23,2049.9,2048.6,2.1763456]
[1772465990020,1.21963118,2049.8,2048.6,2.1763456]
[1772465990216,1.21963118,2049.8,2048.6,1.2203456]
[1772465990431,6.15497342,2049.6,2048.5,2.1773581]
[1772465991037,2.46362479,2049.7,2048.6,2.811046]
[1772465991336,6.15497342,2050.4,2049.2,1.854046]
[1772465991633,8.60409857,2050.7,2049.3,0.957]
[1772465992009,8.60409857,2050.7,2049.3,4.87947692]
[1772465992201,8.60409857,2050.7,2049.4,0.957]
[1772465992406,8.60408177,2050.7,2049.4,0.957]
[1772465992635,7.38497342,2050.7,2049.4,6.29789819]
[1772465992824,6.15497342,2050.6,2049.3,4.87947692]
[1772465993332,6.15497342,2050.6,2049.4,0.957]
[1772465993712,6.15497342,2050.6,2049.4,2.811046]
[1772465993913,1.23,2050.7,2049.4,2.811046]
[1772465993914,1.23,2050.7,2049.4,9.10894419]
[1772465994113,1.21907513,2050.8,2049.5,1.2198097]
[1772465994325,0.002,2050.6,2049.5,7.51770789]
[1772465994529,6.15697342,2050.6,2049.5,1.2198097]
[1772465994936,6.15697342,2050.6,2049.6,0.957]
[1772465995235,6.15697342,2050.6,2049.5,1.2198097]
[1772465995475,0.002,2050.6,2049.6,0.957]
[1772465995640,4.87590813,2051.1,2049.6,0.957]
[1772465995641,6.20497342,2052.2,2050.4,6.29789819]
[1772465995845,0.002,2051.3,2050.4,6.29789819]
[1772465996145,1.854046,2051.2,2049.6,6.29789819]
[1772465996339,0.002,2051.2,2050.1,6.29789819]
[1772465996639,0.002,2051.2,2050.2,7.25589819]
[1772465996844,0.1639875,2051.4,2050.4,6.29789819]
[1772465997744,0.1639875,2051.4,2050.5,0.958]
[1772465997941,1.38268051,2051.4,2050.5,0.958]
[1772465998140,1.38268051,2051.4,2050.6,1.21915536]
[1772465998344,7.53765393,2051.4,2050.2,4.87746739]
[1772465998541,6.15497342,2051.1,2049.6,4.8788409]
[1772465998839,1.38268051,2051.4,2049.7,6.29789819]
[1772465999041,0.1639875,2051.4,2050.2,6.29789819]
[1772465999211,0.1639875,2051.4,2050.3,6.29789819]
[1772465999212,1.38267147,2051.4,2050.3,6.29789819]
[1772465999412,1.38267147,2051.4,2050.3,7.25689819]
[1772465999617,1.38267147,2051.4,2050.4,0.959]
[1772465999814,0.1639875,2051.4,2050.4,0.959]
[1772466000017,6.15497342,2051.9,2050.4,7.25689819]
[1772466000250,4.87312824,2052.1,2050.6,7.51705355]
[1772466000421,11.02810166,2052.1,2050.6,7.51705355]
[1772466000743,6.15497342,2052.0,2050.6,7.51705355]
[1772466000951,6.15497342,2052.0,2050.7,0.959]
[1772466001332,6.15497342,2052.0,2050.6,7.51705355]
[1772466001333,6.15497342,2051.8,2050.6,1.21915536]
[1772466001529,6.15497342,2051.8,2050.4,0.959]
[1772466001848,7.38297342,2051.7,2050.4,0.959]
[1772466002225,1.21856112,2051.6,2050.5,1.21921482]
[1772466002430,2.44654271,2051.7,2050.5,7.51711301]
[1772466002631,1.228,2051.9,2050.5,7.51711301]
[1772466003145,2.44532358,2052.0,2050.6,7.25689819]
[1772466003549,8.600297,2052.0,2050.7,0.959]
[1772466003720,6.15497342,2051.9,2050.6,7.25589819]
[1772466003922,6.15497342,2051.9,2050.5,1.21921482]
[1772466004229,1.21856112,2051.6,2050.3,5.8352575]
[1772466004430,1.227,2051.5,2050.3,1.21933375]
[1772466004629,1.227,2051.5,2050.2,8.47524626]
[1772466004630,7.38197342,2051.5,2050.2,8.47524626]
[1772466004831,7.38197342,2051.5,2050.2,7.51724626]
[1772466005156,7.38197342,2051.5,2049.4,7.51776742]
[1772466005360,6.15497342,2051.5,2049.4,7.51776742]
[1772466005523,6.15497342,2051.5,2049.8,6.29789819]
[1772466005724,6.15497342,2051.5,2049.4,8.83211824]
[1772466005936,6.15497342,2051.3,2049.4,8.47776742]
[1772466006137,6.15497342,2051.3,2049.4,7.51776742]
[1772466006338,6.15497342,2051.1,2049.4,7.51776742]
[1772466006530,6.15497342,2050.9,2049.2,2.17997551]
[1772466006865,6.15497342,2050.9,2048.9,1.90545305]
[1772466006866,6.15497342,2050.7,2048.9,0.001]
[1772466007161,1.227,2050.6,2048.9,1.22116201]
[1772466007319,7.38197342,2050.5,2048.9,0.001]
[1772466007640,7.38197342,2050.5,2048.9,1.22116414]
[1772466008150,7.38197342,2050.5,2048.9,0.001]
[1772466008353,7.37430717,2050.3,2048.9,0.001]
[1772466009451,6.15497342,2050.1,2048.9,0.001]
[1772466009630,6.15497342,2050.1,2048.6,0.001]
[1772466009631,6.15497342,2049.7,2048.6,0.001]
[1772466009961,6.15497342,2049.7,2049.1,0.001]
[1772466010275,6.15497342,2049.7,2048.6,0.001]
[1772466010276,6.15497342,2049.5,2048.4,0.001]
[1772466010439,1.90445305,2049.2,2048.4,0.001]
[1772466010757,6.15497342,2049.1,2047.4,7.51895904]
[1772466010942,6.15497342,2049.1,2047.4,1.22106085]
[1772466011143,6.15497342,2049.1,2047.3,0.001]
[1772466011346,6.15497342,2048.9,2047.3,0.001]
[1772466011547,6.15497342,2048.7,2047.3,0.001]
[1772466012164,6.15497342,2048.5,2047.3,0.001]
[1772466012371,1.22046475,2048.4,2047.3,0.001]
[1772466012573,6.15497342,2048.2,2047.3,0.001]
[1772466013034,1.225,2048.3,2046.6,1.22250011]
[1772466013035,1.225,2048.3,2046.6,0.001]
[1772466013037,6.15497342,2047.8,2046.6,0.001]
[1772466013358,1.90445305,2047.9,2046.6,0.001]
[1772466013359,6.15497342,2047.6,2046.6,0.001]
[1772466013757,2.54635822,2047.7,2046.6,0.001]
[1772466013962,1.226,2047.5,2046.6,7.52043509]
[1772466014285,1.226,2048.2,2047.0,6.29789819]
[1772466014447,1.226,2048.2,2047.3,7.91237921]
[1772466014780,1.225,2048.6,2047.3,8.86737921]
[1772466014979,1.225,2048.6,2047.4,6.00792616]
[1772466015188,1.22020741,2048.9,2047.8,6.00792616]
[1772466015350,1.225,2049.0,2048.1,7.91237921]
[1772466015557,1.21989827,2049.4,2048.2,6.00792616]
[1772466015758,2.44489827,2049.4,2048.2,6.00792616]
[1772466016064,1.21939322,2050.2,2048.6,6.00792616]
[1772466016263,7.1137619,2050.0,2048.3,2.61410787]
[1772466016474,1.21957168,2049.9,2048.5,6.00792616]
[1772466016881,7.10733358,2049.9,2048.4,1.22046475]
[1772466017288,7.10733358,2049.9,2048.0,6.00792616]
[1772466017289,2.46262479,2049.8,2048.0,6.00792616]
[1772466017508,6.32828343,2049.7,2048.1,1.22064352]
[1772466017665,6.32828343,2049.7,2048.1,7.43747317]
[1772466018008,6.32828343,2049.7,2048.1,1.22064352]
[1772466018210,2.46262479,2049.8,2047.7,7.43771161]
[1772466018211,6.32828343,2049.6,2047.7,7.43771161]
[1772466018379,7.54809313,2049.5,2047.7,7.43771161]
[1772466018708,7.34163461,2049.8,2047.7,7.43771161]
[1772466018709,1.21969068,2049.7,2048.1,6.21682965]
[1772466018918,1.225,2049.5,2048.2,6.21682965]
[1772466019207,2.44366557,2049.8,2048.5,6.21682965]
[1772466019408,2.44366557,2049.8,2048.1,3.09809847]
[1772466019609,6.32828343,2049.7,2048.1,2.69078287]
[1772466020082,6.32828343,2049.7,2048.1,10.81206557]
[1772466020278,2.44366557,2049.8,2048.2,6.21682965]
[1772466020480,2.44366557,2049.8,2048.4,6.21682965]
[1772466020798,2.44366557,2049.8,2048.5,9.0762827]
[1772466021002,4.87833317,2049.9,2048.6,6.21682965]
[1772466021003,1.223,2049.9,2048.6,6.21682965]
[1772466021379,1.223,2049.9,2048.3,1.22052433]
[1772466021380,6.32828343,2049.8,2048.3,1.22052433]
[1772466021613,6.32828343,2049.8,2048.0,1.22070312]
[1772466021924,6.32828343,2049.8,2047.6,1.22094159]
[1772466021925,6.32828343,2049.5,2047.6,1.22094159]
[1772466022409,6.32828343,2049.3,2047.4,4.88376636]
[1772466022591,7.55128343,2049.2,2047.4,4.88376636]
[1772466022981,7.55128343,2049.2,2047.5,6.21682965]
[1772466023378,7.55128343,2049.2,2047.4,5.83776636]
[1772466023604,6.32828343,2049.1,2047.2,1.22118014]
[1772466023884,6.32828343,2048.7,2047.1,1.22120093]
[1772466024186,1.28540523,2049.4,2047.1,7.43803058]
[1772466024187,6.32828343,2048.6,2047.1,7.43803058]
[1772466024512,1.22046475,2048.4,2047.1,1.22120093]
[1772466024680,7.54874818,2048.4,2046.8,1.2214188]
[1772466025009,7.54874818,2048.4,2046.7,1.22143336]
[1772466025310,7.54874818,2048.4,2046.6,1.22253723]
[1772466025311,6.32828343,2048.3,2046.6,1.22253723]
[1772466025530,8.87364165,2047.9,2046.6,0.001]
[1772466025735,7.55028343,2047.8,2046.6,1.22253025]
[1772466026035,7.55028343,2047.8,2046.6,1.22253573]
[1772466026413,1.22088196,2047.7,2046.7,0.001]
[1772466026600,7.54916539,2047.7,2046.7,0.001]
[1772466028344,1.22088196,2047.7,2046.7,0.001]
[1772466029134,2.44285572,2047.8,2046.7,0.001]
[1772466029510,1.22073675,2048.0,2046.7,6.21782965]
[1772466029707,1.22,2047.9,2046.7,7.16882965]
[1772466030005,1.22,2047.9,2046.7,6.21782965]
[1772466030534,1.22082234,2047.8,2046.7,0.001]
[1772466030736,7.54910577,2047.8,2046.7,0.001]
[1772466031436,1.22082234,2047.8,2046.7,0.001]
[1772466031937,4.88328938,2047.9,2046.8,6.21682965]
[1772466031938,1.222,2047.7,2046.8,6.21682965]
[1772466032532,1.222,2047.7,2046.9,1.22135912]
[1772466032714,4.88223166,2048.3,2046.9,7.43818877]
[1772466032909,6.39381943,2049.2,2047.0,1.90445305]
[1772466033126,6.39381943,2049.2,2047.5,6.21682965]
[1772466033127,1.223,2049.1,2047.5,6.21682965]
[1772466033460,2.4458501,2049.5,2047.9,6.21682965]
[1772466033626,7.55228343,2049.4,2047.4,0.953]
[1772466033826,7.55228343,2049.4,2047.4,7.16982965]
[1772466034034,7.55228343,2049.4,2047.6,6.21682965]
[1772466034663,7.54821218,2049.3,2047.7,1.22088196]
[1772466035170,7.54821218,2049.3,2047.7,7.43771161]
[1772466035328,7.54821218,2049.3,2047.8,0.953]
[1772466035528,7.54821218,2049.3,2048.0,6.21682965]
[1772466035529,1.21992875,2049.3,2048.0,6.21682965]
[1772466036568,2.44291222,2049.4,2048.1,7.43747317]
[1772466036775,2.44291222,2049.4,2048.2,7.16982965]
[1772466037357,2.44291222,2049.4,2048.3,0.953]
[1772466037668,0.002,2049.5,2048.3,7.16982965]
[1772466037868,0.002,2049.7,2048.7,6.21682965]
[1772466038038,0.002,2049.7,2048.9,6.21682965]
[1772466038368,0.002,2049.7,2049.1,6.21682965]
[1772466038564,0.002,2050.0,2049.2,7.43681793]
[1772466038728,1.21909658,2050.7,2049.3,6.21682965]
[1772466038931,4.87489704,2051.4,2049.7,6.21682965]
[1772466038932,1.222,2051.3,2049.7,6.21682965]
[1772466039151,1.222,2051.3,2049.9,6.21682965]
[1772466039661,8.7707334,2051.8,2050.3,6.21682965]
[1772466039992,6.32828343,2051.2,2049.4,6.21682965]
[1772466040141,1.90445305,2051.3,2049.4,6.21682965]
[1772466040142,6.32828343,2051.0,2049.4,6.21682965]
[1772466040342,6.32828343,2051.0,2049.2,2.17398828]
[1772466040564,6.32828343,2050.8,2049.0,1.22010736]
[1772466041062,6.32828343,2050.4,2048.7,1.22024205]
[1772466041302,6.32828343,2049.8,2048.1,1.220605]
[1772466041463,0.002,2049.2,2048.0,1.22066353]
[1772466041663,1.222,2049.1,2047.9,1.2207118]
[1772466041887,1.222,2049.0,2047.9,1.2207118]
[1772466042265,1.222,2048.9,2047.4,6.21682965]
[1772466042467,7.55028343,2048.9,2047.2,0.001]
[1772466042793,6.32828343,2048.7,2047.2,0.001]
[1772466043793,6.74817643,2048.6,2047.2,0.001]
[1772466043984,6.32828343,2048.6,2047.2,0.001]
[1772466044185,8.23273648,2048.0,2047.0,0.001]
[1772466044384,1.224,2047.9,2047.0,0.001]
[1772466044690,6.32828343,2048.0,2047.0,0.001]
[1772466044691,1.224,2048.0,2047.0,0.001]
[1772466045102,7.55228343,2048.0,2047.0,0.001]
[1772466045301,6.32828343,2047.9,2047.0,0.001]
[1772466046067,1.224,2047.9,2047.0,0.001]
[1772466046607,1.22088196,2047.7,2047.0,0.001]
[1772466047394,1.223,2047.6,2047.0,0.001]
[1772466047763,1.223,2048.2,2047.0,6.43710496]
[1772466047974,2.44344651,2048.5,2047.1,7.38910496]
[1772466048474,1.223,2049.0,2047.3,6.43610496]
[1772466048786,1.22016691,2048.9,2047.4,8.61116581]
[1772466049118,1.22016691,2048.9,2047.4,1.22106085]
[1772466049301,1.22016691,2048.9,2047.2,6.43610496]
[1772466049685,1.224,2048.8,2047.2,6.43610496]
[1772466050517,1.224,2048.8,2047.4,6.43610496]
[1772466050808,2.44428258,2048.8,2047.6,6.43610496]
[1772466051182,1.22028258,2048.8,2047.6,6.43610496]
[1772466051372,1.22028258,2048.8,2047.6,7.38910496]
[1772466051575,2.4421558,2049.0,2047.6,7.38910496]
[1772466052011,2.4421558,2049.0,2047.6,6.43610496]
[1772466052312,2.4421558,2049.0,2047.6,7.39010496]
[1772466052470,1.2201558,2049.0,2047.6,6.43610496]
[1772466052671,1.223,2048.9,2047.6,6.43610496]
[1772466052876,1.223,2048.9,2046.8,4.95106541]
[1772466052877,6.43110041,2048.3,2047.0,0.001]
[1772466053238,6.43110041,2048.3,2046.4,0.001]
[1772466053239,6.43110041,2047.7,2046.4,0.001]
[1772466053518,1.224,2047.6,2046.4,0.001]
[1772466054024,1.224,2047.5,2046.4,0.001]
[1772466054374,7.65510041,2047.5,2046.4,0.001]
[1772466054715,1.224,2047.4,2046.4,0.001]
[1772466054921,1.2211205,2047.3,2046.4,0.001]
[1772466055214,7.65222091,2047.3,2046.4,0.001]
[1772466055416,1.224,2047.2,2046.4,0.001]
[1772466055655,1.223,2047.1,2046.4,0.001]
[1772466056355,1.2211205,2047.3,2046.4,0.001]
[1772466056356,2.4441205,2047.3,2046.4,0.001]
[1772466056652,1.22100122,2047.5,2046.4,0.001]
[1772466056957,1.223,2047.4,2046.4,0.001]
[1772466057153,1.223,2047.4,2046.7,0.001]
[1772466057354,4.88252876,2048.2,2046.7,0.001]
[1772466057518,6.43110041,2048.0,2046.7,0.001]
[1772466058044,7.55797909,2048.2,2046.7,0.001]
[1772466058045,6.43110041,2047.7,2046.7,0.001]
[1772466058349,6.43110041,2047.7,2046.4,0.001]
[1772466059062,6.43110041,2047.5,2046.4,0.001]
[1772466059221,1.221,2047.4,2046.4,0.001]
[1772466059742,6.43110041,2047.5,2046.4,0.001]
[1772466060051,1.221,2047.4,2046.4,0.001]
[1772466060259,7.65210041,2047.4,2046.4,0.001]
[1772466060466,1.221,2047.3,2046.4,0.001]
[1772466060826,1.22,2047.2,2046.4,0.001]
[1772466061265,1.2211205,2047.3,2046.4,0.001]
[1772466061558,7.8130295,2048.0,2046.4,0.001]
[1772466061757,0.002,2048.8,2046.5,6.43710496]
[1772466061919,2.44058392,2048.2,2046.8,6.43610496]
[1772466062118,1.22256803,2048.3,2047.0,6.43610496]
[1772466062549,0.002,2048.3,2047.0,6.43610496]
[1772466062930,0.002,2048.3,2047.3,6.43610496]
[1772466063466,0.002,2048.5,2047.3,6.43610496]
[1772466063663,4.88304818,2048.8,2047.4,6.43610496]
[1772466063664,1.22226664,2048.8,2047.4,6.43610496]
[1772466064036,0.002,2048.8,2047.8,6.43610496]
[1772466064745,2.44223502,2048.8,2047.8,6.43610496]
[1772466064944,2.44223502,2048.8,2047.4,1.22106085]
[1772466065166,1.22223502,2048.8,2047.4,7.65716581]
[1772466065337,1.22,2048.7,2047.4,7.65716581]
[1772466065658,1.22223502,2048.8,2047.4,7.65716581]
[1772466065852,1.22223502,2048.8,2047.6,6.43610496]
[1772466066564,1.22223502,2048.8,2047.5,0.949]